bitfinex-derivatives/quotes_ETHF0:USTF0_20250616
["timestamp","ask_amount","ask_price","bid_price","bid_amount"]
[1750111843448,0.75298,2655.3,2655.2,0.75294]
[1750111848959,0.75299,2655.1,2655.0,0.753]
[1750111849155,0.75304,2654.9,2654.8,1.38296]
[1750111849354,0.75304,2654.9,2654.8,0.75306]
[1750111849558,0.75307,2654.8,2654.7,0.75308]
[1750111849959,0.7531,2654.7,2654.6,0.00564919]
[1750111850259,0.7531,2654.7,2654.6,0.75877919]
[1750111851857,0.75321,2654.4,2654.3,0.75319]
[1750111853762,0.75324,2654.3,2654.2,0.75323]
[1750111853962,3.90235,2654.6,2654.1,0.00564919]
[1750111853963,0.75324,2654.2,2654.1,0.00564919]
[1750111854656,0.00564919,2654.5,2654.4,0.75319]
[1750111855464,0.00564919,2654.5,2654.4,6.8286631]
[1750111856964,0.00564919,2654.5,2654.4,10.0364631]
[1750111857654,7.0546,2655.4,2655.3,0.75293]
[1750111857965,1.72756999,2655.4,2655.3,0.75293]
[1750111858161,0.75296,2655.3,2655.2,0.75294]
[1750111858357,0.75299,2655.2,2655.1,0.75297]
[1750111858558,0.75299,2655.1,2655.0,0.75299]
[1750111858958,0.75302,2655.0,2654.9,0.75303]
[1750111859863,0.753,2655.1,2655.0,0.75299]
[1750111860063,3.96077,2655.2,2655.1,0.75299]
[1750111860464,3.2078,2655.2,2654.8,1.3137]
[1750111860664,0.75302,2655.1,2655.0,0.753]
[1750111860860,9.6208,2655.2,2654.5,3.869]
[1750111861068,3.2078,2654.9,2654.5,3.2078]
[1750111861369,0.75313,2654.6,2654.5,3.96091]
[1750111861567,0.75313,2654.7,2654.6,0.7531]
[1750111861771,0.75307,2654.9,2654.8,0.75304]
[1750111861975,0.6392,2655.0,2654.9,0.75304]
[1750111861976,1.39224,2655.0,2654.9,0.75304]
[1750111862266,10.2793,2655.2,2655.0,0.75299]
[1750111862469,0.97348481,2655.1,2655.0,0.75299]
[1750111862669,10.2793,2655.2,2654.7,1.3137]
[1750111862862,0.75303,2655.1,2655.0,0.75299]
[1750111863258,0.75313,2654.7,2654.6,0.7531]
[1750111863462,3.2078,2655.2,2654.6,11.6571831]
[1750111863668,0.00564919,2655.4,2655.3,0.75293]
[1750111863869,0.00564919,2655.4,2655.3,3.96073]
[1750111864262,0.00564919,2655.4,2655.3,5.31033]
[1750111869373,0.00564919,2655.4,2655.3,3.96073]
[1750111870170,0.75854919,2655.4,2655.3,3.96073]
[1750111870570,0.00564919,2655.4,2655.3,3.96073]
[1750111870776,0.75854919,2655.4,2655.3,3.96073]
[1750111870973,0.00564919,2655.4,2654.9,3.85]
[1750111871276,0.75302,2655.0,2654.9,3.2078]
[1750111871579,0.75313,2654.7,2654.6,0.75309]
[1750111873873,0.75309,2654.8,2654.7,0.75307]
[1750111875077,0.75313,2654.7,2654.6,0.75311]
[1750111875479,1.3506,2654.9,2654.8,0.75307]
[1750111875778,104.74331045,2655.0,2654.9,0.75304]
[1750111877582,101.53551045,2655.0,2654.9,0.75304]
[1750111878784,100.78249045,2655.0,2654.9,0.75304]
[1750111879283,100.16599045,2655.0,2654.9,32.4102131]
[1750111879485,100.16599045,2655.0,2654.9,37.4102131]
[1750111879685,98.03059045,2655.0,2654.9,39.3364131]
[1750111880085,98.03059045,2655.0,2654.9,42.32775091]
[1750111880382,98.03059045,2655.0,2654.9,39.3364131]
[1750111881482,98.03059045,2655.0,2654.9,10.6614131]
[1750111881682,98.03059045,2655.0,2654.9,40.8474131]
[1750111884991,98.03059045,2655.0,2654.9,10.6614131]
[1750111885189,98.03059045,2655.0,2654.9,40.8164131]
[1750111885386,98.03059045,2655.0,2654.8,7.77135]
[1750111885582,1.88262,2654.9,2654.3,3.2078]
[1750111885786,0.75319,2654.5,2654.4,0.75317]
[1750111886092,0.75319,2654.4,2654.3,3.96098]
[1750111886392,0.75319,2654.4,2654.3,3.96102]
[1750111887286,0.75319,2654.4,2654.3,3.2078]
[1750111888086,0.75319,2654.4,2654.1,0.00564919]
[1750111888087,0.75324,2654.2,2654.1,0.00564919]
[1750111888290,0.75324,2654.2,2654.1,0.75891919]
[1750111888688,3.2078,2654.6,2654.1,5.00564919]
[1750111888891,3.2078,2654.9,2654.8,0.75307]
[1750111890693,98.03059045,2655.0,2654.9,0.75304]
[1750111893004,98.78361045,2655.0,2654.9,0.75304]
[1750111893410,0.75307,2654.9,2654.8,0.75304]
[1750111893713,0.75307,2654.9,2654.8,0.75307]
[1750111896513,0.7531,2654.8,2654.7,0.75308]
[1750111897207,98.03059045,2655.0,2654.6,6.6572031]
[1750111897409,98.03059045,2655.0,2654.9,0.75304]
[1750111897706,98.78361045,2655.0,2654.9,0.75304]
[1750111897906,98.78361045,2655.0,2654.4,25.67095]
[1750111897907,126.81559045,2655.0,2654.3,3.2078]
[1750111898113,0.75324,2654.2,2654.1,0.00564919]
[1750111898416,5.09073,2654.5,2654.2,0.75322]
[1750111898417,0.75323,2654.3,2654.2,0.75322]
[1750111899614,0.75324,2654.2,2654.1,0.00564919]
[1750111899912,2.04154,2654.2,2654.1,0.00564919]
[1750111900119,2.04154,2654.2,2654.1,0.75891919]
[1750111900310,0.75324,2654.2,2654.1,0.75891919]
[1750111900812,0.75324,2654.2,2654.1,0.00564919]
[1750111904813,3.96104,2654.2,2654.1,0.00564919]
[1750111905209,0.75333,2653.9,2653.8,0.75336]
[1750111908421,0.75339,2653.8,2653.7,0.75337]
[1750111911024,2.54934919,2654.0,2653.6,0.00564919]
[1750111911025,0.75339,2653.7,2653.6,0.00564919]
[1750111911521,0.75339,2653.7,2653.6,0.75905919]
[1750111911722,0.75339,2653.7,2653.6,0.00564919]
[1750111912525,0.75353,2653.3,2653.2,0.75351]
[1750111912918,0.75353,2653.2,2653.1,3.96133]
[1750111913622,0.75352,2653.3,2653.2,0.7535]
[1750111915623,0.6643,2653.4,2653.3,0.7535]
[1750111915822,0.6643,2653.4,2653.1,5.09167]
[1750111915823,3.2078,2653.9,2653.1,14.2901731]
[1750111916128,3.2078,2653.9,2653.8,0.75336]
[1750111916924,3.2078,2653.9,2653.8,2.06136]
[1750111917321,0.75894919,2654.0,2653.9,0.75333]
[1750111917526,0.00564919,2654.0,2653.9,0.75333]
[1750111918823,3.8786,2654.5,2653.9,0.75333]
[1750111918824,0.75321,2654.4,2654.3,0.75319]
[1750111919629,3.96098,2654.5,2654.4,0.75319]
[1750111920529,0.75321,2654.4,2654.3,0.7532]
[1750111920722,3.2078,2654.5,2653.8,3.2078]
[1750111920925,0.7533,2654.1,2654.0,0.75328]
[1750111923827,0.75334,2654.0,2653.9,0.75331]
[1750111925929,0.75344,2653.6,2653.5,0.75341]
[1750111926433,0.75344,2653.5,2653.4,3.96126]
[1750111927130,0.75343,2653.6,2653.5,0.7534]
[1750111927727,3.2078,2653.9,2653.5,1.88361]
[1750111927931,3.96115,2653.9,2653.8,0.75336]
[1750111928227,3.2078,2653.9,2653.8,0.75336]
[1750111928621,3.2078,2654.2,2654.1,0.75323]
[1750111929222,3.96104,2654.2,2654.1,0.75323]
[1750111929420,3.2078,2654.5,2654.4,0.75319]
[1750111929626,1.72998665,2654.5,2654.4,0.75319]
[1750111929827,0.97681665,2654.5,2654.4,0.75319]
[1750111930022,0.00564919,2654.7,2654.6,0.75313]
[1750111930228,0.98243531,2654.7,2654.6,0.75313]
[1750111930431,0.00564919,2654.7,2654.6,0.75313]
[1750111931625,0.75313,2654.6,2654.5,0.6574]
[1750111931827,0.00564919,2654.7,2654.5,0.6574]
[1750111932026,0.00564919,2654.7,2654.6,0.75313]
[1750111932431,0.75316,2654.5,2654.4,0.00564919]
[1750111932624,3.96096,2654.5,2654.4,0.00564919]
[1750111932830,0.00564919,2654.7,2654.6,0.75313]
[1750111933632,0.75313,2654.6,2654.5,1.40884]
[1750111934328,0.75313,2654.6,2654.5,0.6557]
[1750111934528,0.75316,2654.5,2654.4,0.64424919]
[1750111934731,0.75316,2654.5,2654.4,0.00564919]
[1750111935836,0.7533,2654.0,2653.9,1.39193]
[1750111936029,0.75333,2653.9,2653.8,3.96114]
[1750111938138,98.03059045,2654.1,2653.8,3.2078]
[1750111938337,98.78388045,2654.1,2654.0,0.7533]
[1750111940939,98.78388045,2654.1,2653.8,4.475]
[1750111940940,0.75333,2654.0,2653.9,0.75331]
[1750111941941,0.75332,2654.0,2653.8,3.2078]
[1750111942142,98.03059045,2654.1,2654.0,0.7533]
[1750111944142,98.03059045,2654.1,2654.0,5.7533]
[1750111944342,98.03059045,2654.1,2654.0,0.7533]
[1750111944642,98.03059045,2654.1,2654.0,7.0682]
[1750111946135,98.03059045,2654.1,2654.0,10.06641865]
[1750111946536,98.01929207,2654.1,2654.0,10.06641865]
[1750111946846,98.01929207,2654.1,2654.0,7.0682]
[1750111948139,95.98509207,2654.1,2654.0,7.0682]
[1750111948333,79.40122616,2654.1,2654.0,7.0682]
[1750111948539,73.99435676,2654.1,2654.0,7.0682]
[1750111948740,72.11077706,2654.1,2654.0,7.0682]
[1750111949045,66.87361819,2654.1,2654.0,10.81597331]
[1750111949340,64.43053819,2654.1,2654.0,10.81597331]
[1750111949536,63.08603819,2654.1,2654.0,13.3762]
[1750111949733,63.08603819,2654.1,2654.0,35.04569582]
[1750111949934,63.08603819,2654.1,2654.0,41.8205731]
[1750111951137,63.08603819,2654.1,2654.0,44.82006892]
[1750111951337,63.08603819,2654.1,2654.0,36.8425731]
[1750111951646,63.08603819,2654.1,2654.0,36.8375731]
[1750111952240,63.08603819,2654.1,2654.0,32.0632]
[1750111953037,63.08603819,2654.1,2654.0,7.0603]
[1750111953237,63.83930819,2654.1,2654.0,7.0603]
[1750111953442,63.83930819,2654.1,2654.0,30.7383]
[1750111953637,63.83930819,2654.1,2654.0,6.307]
[1750111953947,63.83930819,2654.1,2654.0,29.983]
[1750111954541,63.08603819,2654.1,2653.8,3.2078]
[1750111954747,0.75333,2653.9,2653.8,27.62814]
[1750111954939,0.75336,2653.8,2653.7,6.307]
[1750111955254,1.36986,2653.8,2653.7,6.307]
[1750111956243,1.36986,2653.8,2653.7,7.06038]
[1750111956443,1.36986,2653.8,2653.7,6.307]
[1750111957050,1.36986,2653.8,2653.7,7.06038]
[1750111958245,0.6165,2653.8,2653.7,7.06038]
[1750111958652,1.36986,2653.8,2653.7,7.06038]
[1750111959346,1.36986,2653.8,2653.7,6.307]
[1750111960854,1.36986,2653.8,2653.7,7.06038]
[1750111961149,0.6165,2653.8,2653.7,7.06038]
[1750111961361,1.36986,2653.8,2653.7,7.06038]
[1750111962257,1.36986,2653.8,2653.7,6.307]
[1750111966556,0.75338,2653.7,2653.6,0.00564919]
[1750111966748,2.04878,2653.7,2653.6,0.00564919]
[1750111968050,0.75338,2653.7,2653.6,0.75905919]
[1750111968247,3.2078,2654.0,2653.7,1.88347]
[1750111968552,63.08603819,2654.1,2653.7,1.88347]
[1750111968553,63.08603819,2654.1,2654.0,0.7533]
[1750111968758,63.83933819,2654.1,2654.0,0.7533]
[1750111969356,63.08603819,2654.1,2654.0,0.7533]
[1750111969952,63.83930819,2654.1,2654.0,0.7533]
[1750111971062,0.75333,2653.9,2653.8,7.07235]
[1750111971252,0.75333,2653.9,2653.8,30.65735]
[1750111972351,63.83932819,2654.1,2654.0,0.7533]
[1750111972556,63.83932819,2654.1,2653.8,11.41019]
[1750111972557,0.75333,2653.9,2653.8,10.28013]
[1750111973063,0.75331,2654.0,2653.9,0.7533]
[1750111973265,63.83931819,2654.1,2654.0,0.7533]
[1750111973956,63.08603819,2654.1,2654.0,24.3583]
[1750111974364,0.75333,2654.0,2653.9,0.75331]
[1750111974661,0.75333,2654.0,2653.9,24.35531]
[1750111975759,0.75333,2654.0,2653.9,23.602]
[1750111976257,0.75333,2654.0,2653.9,24.35533]
[1750111976463,63.83931819,2654.1,2654.0,0.7533]
[1750111980366,63.83930819,2654.1,2654.0,1.9909]
[1750111980563,0.75333,2653.9,2653.8,3.2078]
[1750111980762,0.75333,2653.9,2653.8,33.0828]
[1750111981370,0.75332,2654.0,2653.9,0.7533]
[1750111981565,0.75333,2653.9,2653.8,3.2078]
[1750111982068,0.75335,2653.8,2653.7,6.319]
[1750111982269,0.75338,2653.7,2653.6,0.75905919]
[1750111983170,0.75338,2653.8,2653.7,0.75335]
[1750111983670,0.75338,2653.7,2653.6,0.00564919]
[1750111983858,0.75353,2653.2,2653.1,6.319]
[1750111984064,0.75358,2653.0,2652.9,3.2078]
[1750111984670,1.88379,2653.3,2652.8,7.69533]
[1750111984671,0.75361,2652.9,2652.8,6.319]
[1750111986074,0.75361,2652.9,2652.6,25.00581919]
[1750111986075,0.75367,2652.7,2652.6,0.00564919]
[1750111986375,0.75381,2652.2,2652.1,3.2078]
[1750111987172,0.75389,2651.9,2651.8,10.1673]
[1750111987476,0.75389,2651.9,2651.8,33.76494919]
[1750111987678,0.75389,2651.9,2651.8,6.32564919]
[1750111988069,0.75389,2651.9,2651.8,7.07956919]
[1750111989669,0.75388,2652.0,2651.9,0.75388]
[1750111989877,0.75389,2651.9,2651.8,7.07954919]
[1750111990379,0.75388,2652.0,2651.9,0.75388]
[1750111990578,0.75389,2651.9,2651.8,0.00564919]
[1750111990872,3.2078,2652.2,2651.8,23.58364919]
[1750111991079,0.75386,2652.1,2652.0,0.75385]
[1750111991276,3.96163,2652.2,2652.1,0.75384]
[1750111991577,3.2078,2652.2,2652.1,0.75384]
[1750111991977,3.96161,2652.2,2652.1,0.75384]
[1750111992176,0.75389,2651.9,2651.8,0.00564919]
[1750111992372,0.75389,2651.9,2651.0,2.99949582]
[1750111992373,0.75398,2651.7,2651.1,10.1597]
[1750111992568,0.75399,2651.6,2651.5,0.75398]
[1750111993080,0.75396,2651.7,2651.6,0.75395]
[1750111993580,0.75398,2651.7,2651.6,0.75397]
[1750111994076,0.00564919,2651.9,2651.8,0.75392]
[1750111995382,0.00564919,2651.9,2651.8,1.98562]
[1750111995974,0.00564919,2651.9,2651.8,2.60352]
[1750111999281,0.00564919,2651.9,2651.8,0.75392]
[1750112000580,0.75384,2652.2,2652.1,0.75382]
[1750112000881,0.75384,2652.1,2652.0,0.75385]
[1750112001077,0.75384,2652.1,2652.0,7.03385]
[1750112001276,0.75384,2652.1,2652.0,0.75385]
[1750112001781,0.75384,2652.1,2651.9,6.28]
[1750112001782,0.75382,2652.2,2652.1,0.75381]
[1750112002278,0.75389,2652.0,2651.9,7.03387]
[1750112002476,0.75389,2652.0,2651.9,0.75387]
[1750112002683,0.75392,2651.9,2651.8,7.03391]
[1750112003183,0.75392,2651.9,2651.8,7.03392]
[1750112003384,0.75392,2651.9,2651.8,6.28]
[1750112003586,0.75392,2651.9,2651.8,0.75392]
[1750112003978,40.8,2652.2,2651.8,1.88482]
[1750112004178,0.75944919,2652.3,2652.2,0.75381]
[1750112004483,0.00564919,2652.3,2652.2,0.75381]
[1750112006284,0.00564919,2652.3,2652.2,2.75011]
[1750112007283,0.00564919,2652.3,2652.2,1.41701]
[1750112007473,0.75942919,2652.3,2652.2,7.69701]
[1750112007680,0.75942919,2652.3,2652.1,0.6475]
[1750112007681,0.75381,2652.2,2652.1,1.40132]
[1750112007880,0.00564919,2652.3,2652.2,0.75381]
[1750112010590,0.75942919,2652.3,2652.2,0.75381]
[1750112010791,0.75384,2652.2,2652.1,0.75382]
[1750112011386,0.75384,2652.2,2652.0,9.4878]
[1750112011387,0.75384,2652.1,2652.0,10.24164]
[1750112012580,0.00564919,2652.3,2652.0,9.4878]
[1750112012786,0.00564919,2652.3,2652.2,0.75381]
[1750112013185,0.75942919,2652.3,2652.2,0.75381]
[1750112013989,0.75384,2652.2,2652.1,0.75382]
[1750112014884,0.75944919,2652.3,2652.2,0.75381]
[1750112015584,0.75944919,2652.3,2652.1,0.75382]
[1750112015585,0.75384,2652.2,2652.1,0.75382]
[1750112016083,0.75384,2652.1,2652.0,0.75384]
[1750112017592,0.75389,2651.9,2651.8,8.33659]
[1750112018090,0.75389,2651.9,2651.8,2.05659]
[1750112019696,0.75388,2652.1,2652.0,0.82121406]
[1750112020687,0.75388,2652.1,2652.0,0.75384]
[1750112021098,0.75381,2652.2,2652.1,0.75381]
[1750112021291,0.00564919,2652.3,2652.2,0.75381]
[1750112021292,0.75944919,2652.3,2652.2,0.75381]
[1750112023096,0.00564919,2652.3,2652.2,0.75381]
[1750112023502,0.75942919,2652.3,2652.2,0.75381]
[1750112023797,0.00564919,2652.3,2652.2,0.75381]
[1750112024199,0.00564919,2652.3,2652.2,7.02581]
[1750112024899,0.75384,2652.1,2652.0,0.06737406]
[1750112025392,0.75384,2652.1,2652.0,0.82121406]
[1750112026705,0.75944919,2652.3,2652.2,0.75381]
[1750112028201,0.00564919,2652.3,2652.2,0.75381]
[1750112028699,0.75942919,2652.3,2652.2,0.75381]
[1750112029205,0.75387,2652.1,2652.0,0.75383]
[1750112029399,0.75387,2652.1,2652.0,7.02483]
[1750112030306,0.75383,2652.2,2652.1,0.75381]
[1750112032607,0.75387,2652.1,2652.0,7.02485]
[1750112033802,0.75387,2652.0,2651.9,10.23266]
[1750112034606,0.75387,2652.0,2651.9,9.4788]
[1750112035006,0.75387,2652.0,2651.9,3.2078]
[1750112035201,0.75392,2651.8,2651.7,0.75395]
[1750112035405,3.22301,2652.0,2651.6,6.271]
[1750112035406,0.75395,2651.7,2651.6,7.02496]
[1750112036602,0.75395,2651.7,2651.6,0.75396]
[1750112041712,0.75398,2651.6,2651.5,10.2328]
[1750112042011,0.75398,2651.6,2651.5,3.9618]
[1750112042414,0.75396,2651.8,2651.7,0.75392]
[1750112046110,0.75396,2651.8,2651.5,3.27517406]
[1750112046309,0.75398,2651.7,2651.6,0.75396]
[1750112048310,0.75401,2651.6,2651.5,0.75399]
[1750112049312,0.75397,2651.7,2651.6,0.75392]
[1750112049709,0.75394,2651.9,2651.8,0.7539]
[1750112050718,0.75389,2652.0,2651.9,0.75387]
[1750112050909,1.41576,2652.1,2652.0,0.75387]
[1750112051103,0.75386,2652.1,2652.0,0.75387]
[1750112051305,0.75392,2651.9,2651.8,0.75388]
[1750112052214,4.41806594,2652.1,2651.7,1.38352]
[1750112052215,0.75392,2651.8,2651.7,1.38352]
[1750112053011,0.75391,2652.0,2651.9,0.75384]
[1750112053211,0.75944919,2652.3,2652.2,0.75381]
[1750112055611,0.75944919,2652.3,2652.2,2.08391]
[1750112057815,0.7537,2652.7,2652.3,1.88445]
[1750112058020,0.75366,2652.8,2652.7,0.75364]
[1750112058914,0.00564919,2653.0,2652.9,0.75361]
[1750112059124,0.75345,2653.6,2653.5,0.75342]
[1750112059325,4.58839,2653.7,2653.6,0.75341]
[1750112059517,3.96119,2653.7,2653.6,0.75341]
[1750112060117,3.2078,2653.7,2653.6,0.75341]
[1750112060622,0.75899919,2653.9,2653.8,0.75336]
[1750112060623,0.00564919,2653.9,2653.8,0.75336]
[1750112060831,0.00564919,2653.9,2653.8,9.53481594]
[1750112061019,0.00564919,2653.9,2653.8,14.53481594]
[1750112061524,9.19e-06,2653.9,2653.8,15.87301594]
[1750112061717,0.7531,2654.7,2654.6,0.75311]
[1750112062119,0.75309,2654.8,2654.6,0.75311]
[1750112062320,5.74125594,2654.9,2654.4,6.247]
[1750112062321,3.96085,2654.9,2654.7,1.3382]
[1750112062523,5.74125594,2654.9,2654.5,0.75315]
[1750112062719,0.75311,2654.7,2654.6,0.75313]
[1750112063424,0.75309,2654.8,2654.6,0.75313]
[1750112063726,0.75309,2654.8,2654.7,0.7531]
[1750112063921,3.96086,2654.9,2654.4,7.5852]
[1750112064121,3.2078,2654.9,2654.4,7.5852]
[1750112064321,3.96086,2654.9,2654.4,7.5852]
[1750112064526,0.75307,2654.8,2654.6,0.75311]
[1750112065025,3.96086,2654.9,2654.7,0.7531]
[1750112065321,3.2078,2654.9,2654.6,0.75312]
[1750112065519,0.75308,2654.8,2654.7,0.75309]
[1750112066019,0.75308,2654.8,2654.4,7.5852]
[1750112066217,0.75311,2654.7,2654.4,7.5852]
[1750112066416,0.75309,2654.8,2654.4,7.5852]
[1750112066919,3.96086,2654.9,2654.8,0.75307]
[1750112067120,0.75307,2654.8,2654.6,0.7531]
[1750112067426,3.96086,2654.9,2654.8,0.75307]
[1750112067627,0.75307,2654.8,2654.4,7.5852]
[1750112067822,0.00564919,2655.0,2654.5,4.78126314]
[1750112068022,0.00564919,2655.0,2654.9,0.75304]
[1750112068419,0.00564919,2655.0,2654.9,2.03434]
[1750112068620,0.00564919,2655.0,2654.9,5.24214]
[1750112070322,0.75866919,2655.0,2654.9,5.24214]
[1750112070521,0.75866919,2655.0,2654.9,4.4891]
[1750112070726,0.75866919,2655.0,2654.9,3.2078]
[1750112071329,0.75304,2654.9,2654.8,6.245]
[1750112073127,0.75867919,2655.0,2654.9,0.75304]
[1750112073334,0.75304,2654.9,2654.8,6.245]
[1750112074435,0.75304,2654.9,2654.8,6.99807]
[1750112075332,0.75304,2654.9,2654.8,6.245]
[1750112075628,0.75304,2654.9,2654.8,6.99807]
[1750112075932,0.75304,2654.9,2654.8,6.245]
[1750112076232,0.75304,2654.9,2654.8,6.99807]
[1750112077631,0.75304,2654.9,2654.8,10.20587]
[1750112078232,0.75304,2654.9,2654.8,9.4528]
[1750112078532,0.75304,2654.9,2654.8,6.99807]
[1750112078830,0.75313,2654.6,2654.5,9.4508]
[1750112080236,0.75313,2654.6,2654.5,3.2078]
[1750112081237,0.75313,2654.6,2654.5,3.96096]
[1750112084334,0.75313,2654.6,2654.5,3.2078]
[1750112084633,0.75313,2654.6,2654.5,3.96096]
[1750112085138,0.75313,2654.6,2654.5,3.2078]
[1750112085343,0.75321,2654.4,2654.2,6.235]
[1750112085543,0.75321,2654.4,2654.3,0.75319]
[1750112085741,0.75318,2654.5,2654.4,0.75316]
[1750112086940,0.75321,2654.4,2654.3,0.75319]
[1750112088541,0.75321,2654.3,2654.2,6.98822]
[1750112091639,1.88311,2654.2,2653.8,3.8777]
[1750112091844,0.75341,2653.7,2653.6,0.75338]
[1750112092239,0.75332,2654.1,2654.0,0.75327]
[1750112093843,1.37425,2654.2,2654.1,0.75327]
[1750112094043,0.75325,2654.2,2654.1,0.75327]
[1750112096145,0.75323,2654.3,2654.2,0.75319]
[1750112096746,0.75329,2654.2,2654.1,0.75325]
[1750112099340,0.75321,2654.4,2654.3,0.75317]
[1750112100139,0.75321,2654.3,2654.2,1.41242]
[1750112100339,0.75324,2654.2,2654.1,3.96106]
[1750112100538,0.75333,2653.9,2653.8,4.5185]
[1750112100746,1.88335,2653.9,2653.5,4.5206]
[1750112101049,0.75344,2653.5,2653.4,0.64314919]
[1750112101244,6.48980072,2653.5,2653.4,0.00564919]
[1750112101552,0.75358,2653.0,2652.9,3.2078]
[1750112101844,0.7537,2652.6,2652.5,3.2078]
[1750112102050,0.75375,2652.4,2652.3,6.236]
[1750112102545,0.75381,2652.2,2652.1,47.36427919]
[1750112102848,0.75379,2652.3,2652.1,3.21344919]
[1750112103036,0.75381,2652.2,2652.1,3.21344919]
[1750112104248,0.75381,2652.2,2652.1,3.96728919]
[1750112104849,0.75381,2652.2,2652.1,3.21344919]
[1750112105858,0.75381,2652.2,2652.1,3.96728919]
[1750112106245,0.75381,2652.2,2652.1,3.21344919]
[1750112106746,0.75381,2652.2,2652.1,0.00564919]
[1750112107651,2.11301,2652.2,2652.1,0.00564919]
[1750112110052,2.11301,2652.2,2652.1,0.75948919]
[1750112110249,0.6784,2652.5,2652.1,0.00564919]
[1750112110554,0.75381,2652.2,2652.1,0.75945919]
[1750112110852,0.75379,2652.3,2652.2,0.75378]
[1750112111151,0.75375,2652.5,2652.4,0.75374]
[1750112111341,0.75377,2652.4,2652.3,0.75376]
[1750112112547,0.75379,2652.3,2652.2,0.75378]
[1750112113756,0.75377,2652.4,2652.3,0.75376]
[1750112115355,49.97560919,2652.4,2652.3,0.75376]
[1750112115657,63.83980819,2652.4,2652.3,0.75376]
[1750112115857,0.75381,2652.3,2652.2,0.75379]
[1750112118461,63.83980819,2652.4,2652.3,0.75378]
[1750112118654,63.08603819,2652.4,2652.3,0.75378]
[1750112119359,63.08603819,2652.4,2652.3,2.03328]
[1750112120257,63.080389,2652.4,2652.3,11.82328826]
[1750112122265,62.281869,2652.4,2652.3,11.82328826]
[1750112122963,62.281869,2652.4,2652.3,9.56472474]
[1750112123659,62.281869,2652.4,2652.3,4.56472474]
[1750112123851,62.281869,2652.4,2652.3,10.79372474]
[1750112125460,62.281869,2652.4,2652.3,4.56472474]
[1750112125761,62.281869,2652.4,2652.3,34.27972474]
[1750112126062,62.281869,2652.4,2652.3,34.27872474]
[1750112127462,62.281869,2652.4,2652.3,39.27872474]
[1750112128267,62.281869,2652.4,2652.3,34.27872474]
[1750112128456,62.281869,2652.4,2652.3,39.27672474]
[1750112129163,62.281869,2652.4,2652.3,42.27622056]
[1750112129761,62.281869,2652.4,2652.3,39.27672474]
[1750112129957,61.527849,2652.4,2652.3,42.27622056]
[1750112130158,60.567239,2652.4,2652.3,42.27622056]
[1750112130763,59.725879,2652.4,2652.3,42.27622056]
[1750112130963,58.941389,2652.4,2652.3,42.27622056]
[1750112131351,58.167379,2652.4,2652.3,42.27622056]
[1750112131859,58.167379,2652.4,2652.3,31.74128]
[1750112132762,58.167379,2652.4,2652.3,34.27272474]
[1750112137557,58.167379,2652.4,2652.3,9.51422474]
[1750112137768,58.167379,2652.4,2652.3,30.45678]
[1750112138066,58.167379,2652.4,2652.3,32.98822474]
[1750112138866,58.167379,2652.4,2652.3,37.32812056]
[1750112140264,58.167379,2652.4,2652.3,7.62512056]
[1750112140467,58.167379,2652.4,2652.3,37.31312056]
[1750112142266,58.167379,2652.4,2652.3,34.31362474]
[1750112148266,58.167379,2652.4,2652.3,38.06139805]
[1750112150071,58.167379,2652.4,2652.3,36.72099805]
[1750112151970,58.167379,2652.4,2652.3,32.96222474]
[1750112152167,58.167379,2652.4,2652.3,0.75378]
[1750112152574,58.821679,2652.4,2652.3,24.21278]
[1750112152965,66.35312374,2652.4,2652.1,3.21344919]
[1750112153273,0.75381,2652.2,2652.1,3.96728919]
[1750112153466,0.75381,2652.2,2652.1,26.67244919]
[1750112153668,1.41581,2652.2,2652.1,26.67244919]
[1750112153869,1.41581,2652.2,2652.1,27.42628919]
[1750112153870,0.662,2652.2,2652.1,27.42628919]
[1750112154270,1.9317,2652.2,2652.1,27.42628919]
[1750112154470,1.9317,2652.2,2652.1,3.96728919]
[1750112154670,1.9317,2652.2,2652.1,27.42428919]
[1750112161380,1.9317,2652.2,2652.1,3.96728919]
[1750112161580,1.9317,2652.2,2652.1,27.42228919]
[1750112164183,2.68551,2652.2,2652.1,27.42228919]
[1750112164383,1.9317,2652.2,2652.1,27.42228919]
[1750112164984,2.68551,2652.2,2652.1,27.42228919]
[1750112165283,0.75389,2652.0,2651.9,0.75386]
[1750112165483,0.75389,2652.0,2651.9,24.20686]
[1750112165684,0.75389,2652.0,2651.9,24.20486]
[1750112166388,0.75389,2652.0,2651.9,0.75386]
[1750112168287,1.9317,2652.2,2652.1,0.75384]
[1750112168480,0.662,2652.2,2652.1,0.75384]
[1750112168684,1.41581,2652.2,2652.1,0.75384]
[1750112168885,2.67751,2652.2,2652.1,0.75384]
[1750112169583,6.9237,2652.2,2651.8,3.2078]
[1750112169888,0.75389,2652.0,2651.9,0.75387]
[1750112172482,0.662,2652.2,2652.1,0.75384]
[1750112172877,58.821679,2652.4,2652.3,0.75378]
[1750112173488,58.167379,2652.4,2652.3,0.75378]
[1750112174782,58.167379,2652.4,2652.3,24.19778]
[1750112175179,0.75381,2652.2,2652.1,4.60561]
[1750112175484,45.05699,2652.2,2652.1,34.24761]
[1750112175786,58.921189,2652.2,2652.1,34.24761]
[1750112176689,58.167379,2652.2,2652.1,34.24761]
[1750112178687,58.167379,2652.2,2652.1,35.59851]
[1750112180290,58.167379,2652.2,2652.1,35.59251]
[1750112180491,58.167379,2652.2,2652.1,34.24161]
[1750112180897,58.167379,2652.2,2652.1,35.56521]
[1750112184095,57.33598981,2652.2,2652.1,35.56521]
[1750112184599,56.53777981,2652.2,2652.1,40.56521]
[1750112184890,54.82268981,2652.2,2652.1,40.56521]
[1750112185095,53.89737981,2652.2,2652.1,40.56521]
[1750112186591,53.89737981,2652.2,2652.1,5.92921]
[1750112186793,53.89737981,2652.2,2652.1,35.55921]